fUSD/lending_fUSD_20241020
["ID","MTS","AMOUNT","RATE_DAILY","PERIOD"]
[340554632,1729461038828,-199.961,0.00013205,2]
[340554633,1729461038840,-153.41,0.00013255,2]
[340554634,1729461038849,-199.961,0.00013267,2]
[340554635,1729461038858,-199.961,0.00013329,2]
[340554636,1729461038867,-600.0,0.00013389,2]
[340554637,1729461038877,-155.05,0.00013559,2]
[340554638,1729461038887,-150.0,0.00013627,2]
[340554639,1729461038895,-150.0,0.00013629,2]
[340554640,1729461038905,-150.0,0.00013633,2]
[340554641,1729461038914,-1500.0,0.00013642,2]
[340554642,1729461038923,-150.0,0.00013653,2]
[340554643,1729461038932,-150.0,0.00013676,2]
[340554644,1729461038941,-150.0,0.00013684,2]
[340554645,1729461038950,-500.0,0.00013699,2]
[340554646,1729461038959,-200.0,0.00013699,2]
[340554647,1729461038969,-295.13657877,0.00013699,2]
[340554648,1729461038978,-150.0,0.00013706,2]
[340554649,1729461038987,-150.0,0.00013717,2]
[340554650,1729461038996,-150.0,0.00013719,2]
[340554651,1729461039005,-150.0,0.00013722,2]
[340554652,1729461039015,-1500.0,0.00013728,2]
[340554653,1729461039023,-150.0,0.00013744,2]
[340554654,1729461039032,-150.0,0.00013745,2]
[340554655,1729461039042,-446.47,0.00013748,2]
[340554656,1729461039051,-150.0,0.00013758,2]
[340554657,1729461039059,-1500.0,0.00013761,2]
[340554658,1729461039068,-150.0,0.00013766,2]
[340554659,1729461039077,-150.0,0.00013767,2]
[340554660,1729461039087,-150.0,0.00013771,2]
[340554661,1729461039096,-648.1,0.00013783,2]
[340554662,1729461039106,-812.08,0.0001379,2]
[340554663,1729461039115,-812.08,0.0001379,2]
[340554664,1729461039124,-812.08,0.0001379,2]
[340554666,1729461039134,-1500.0,0.00013792,2]
[340554668,1729461039143,-150.0,0.00013794,2]
[340554670,1729461039152,-6634.144694,0.000138,2]
[340554672,1729461039161,-340759.343794,0.000138,2]
[340554674,1729461039171,-150.0,0.00013806,2]
[340554676,1729461039182,-150.0,0.0001381,2]
[340554685,1729461039349,-176.11698715,0.0001381,2]
[340554686,1729461039367,-150.0,0.00013811,2]
[340554687,1729461039377,-153.41,0.00013818,2]
[340554688,1729461039386,-1000.0,0.0001383,2]
[340554689,1729461039397,-1000.0,0.0001383,2]
[340554690,1729461039408,-1000.0,0.0001383,2]
[340554691,1729461039418,-447.255,0.0001383,2]
[340554692,1729461039429,-150.0,0.00013836,2]
[340554694,1729461039438,-150.0,0.00013837,2]
[340554695,1729461039447,-273.40614576,0.0001384,2]
[340554696,1729461039455,-150.0,0.00013846,2]
[340554697,1729461039464,-1587.0032108,0.00013847,2]
[340554698,1729461039473,-150.0,0.00013851,2]
[340554699,1729461039482,-150.0,0.00013856,2]
[340554700,1729461039491,-150.0,0.00013865,2]
[340554701,1729461039500,-150.0,0.00013868,2]
[340554702,1729461039509,-150.0,0.00013871,2]
[340554703,1729461039518,-150.0,0.00013874,2]
[340554705,1729461039527,-671.0,0.00013877,2]
[340554706,1729461039536,-400.0,0.00013877,2]
[340554707,1729461039545,-150.0,0.00013882,2]
[340554708,1729461039554,-169.60500023,0.0001389,2]
[340554709,1729461039563,-812.08,0.0001389,2]
[340554710,1729461039571,-812.08,0.0001389,2]
[340554711,1729461039581,-150.0,0.00013892,2]
[340554712,1729461039590,-150.0,0.00013896,2]
[340554713,1729461039600,-440.25376196,0.00013899,2]
[340554714,1729461039608,-2826.1081022,0.00013899,2]
[340554715,1729461039617,-500.0,0.00013899,2]
[340554716,1729461039626,-261.46742378,0.00013899,2]
[340554717,1729461039635,-8425.32894897,0.000139,2]
[340554718,1729461039659,-14976.47008776,0.000139,2]
[340554719,1729461039670,-4107.9604134,0.000139,2]
[340554721,1729461039884,-824.14377842,0.000139,2]
[340554722,1729461039993,-1183.63992961,0.000139,2]
[340554733,1729461042695,-18374.6151742,0.000139,2]
[340554734,1729461042749,-959.49357386,0.000139,2]
[340554735,1729461042761,-4169.92515056,0.000139,2]
[340554736,1729461042890,-6168.23386236,0.000139,2]
[340554741,1729461045542,-688.413945,0.000139,2]
[340554742,1729461045554,-32854.40525839,0.000139,2]
[340554743,1729461045602,-343.5,0.000139,2]
[340554745,1729461046228,-6737.7401545,0.000139,2]
[340554746,1729461046374,-500.0,0.00013799,2]
[340554747,1729461046386,-500.0,0.00013799,2]
[340554748,1729461046395,-444.51778763,0.00013799,2]
[340554749,1729461046405,-19319.09725775,0.000139,2]
[340554750,1729461076468,2500.0,0.000109,2]
[340554751,1729461683683,156.67,0.00010959,2]
[340554752,1729461942397,1098.46,0.00010847,2]
[340554753,1729461993138,-150.0,0.000118,2]
[340554754,1729461993299,-1238.0,0.000123,2]
[340554755,1729461993321,-467.88625397,0.00012309,2]
[340554756,1729461993341,-383.762619,0.00012342,2]
[340554757,1729461993362,-467.88625395,0.00012405,2]
[340554758,1729461993382,-157.18066516,0.000125,2]
[340554759,1729462221541,11520.0,0.00012,3]
[340554764,1729462231993,-150.0,0.000117,2]
[340554765,1729462232002,-300.0,0.00012299,2]
[340554766,1729462232011,-8425.76766518,0.000125,5]
[340554767,1729462232022,-1645.7999999,0.000125,5]
[340554768,1729462232034,-812.39353337,0.000125,5]
[340554769,1729462232045,-636.03880155,0.000125,5]
[340554770,1729462232055,-383.92,0.00012765,2]
[340554771,1729462232065,-150.0,0.0001288,2]
[340554772,1729462232074,-166.48,0.00012922,2]
[340554773,1729462232083,-243.25696798,0.00012932,2]
[340554774,1729462232094,-24.62303202,0.00012932,2]
[340554775,1729462232105,-252.95533278,0.00012954,2]
[340554776,1729462232145,-107.04466722,0.00012954,2]
[340554777,1729462232154,-581.95533278,0.00013111,2]
[340554778,1729462232165,-516.50466722,0.00013111,2]
[340554779,1729462232174,-173.74307278,0.00013375,2]
[340554780,1729462232199,-76.25692722,0.00013375,2]
[340554781,1729462232208,-499.99,0.00013386,2]
[340554782,1729462232217,-383.92,0.00013403,2]
[340554783,1729462232226,-1640.53,0.00013423,2]
[340554784,1729462232235,-250.0,0.00013423,2]
[340554785,1729462232244,-419.05,0.00013423,2]
[340554786,1729462232253,-250.0,0.00013423,2]
[340554787,1729462232262,-420.0,0.00013497,2]
[340554788,1729462232272,-150.0,0.00013557,2]
[340554789,1729462232281,-150.0,0.00013563,2]
[340554790,1729462232290,-150.0,0.00013564,2]
[340554791,1729462232299,-150.0,0.00013569,2]
[340554792,1729462232308,-150.0,0.00013572,2]
[340554793,1729462232318,-150.0,0.00013592,2]
[340554794,1729462232327,-150.0,0.00013592,2]
[340554795,1729462232336,-150.0,0.00013596,2]
[340554796,1729462232345,-150.0,0.00013606,2]
[340554797,1729462232360,-150.0,0.00013614,2]
[340554798,1729462232369,-150.0,0.00013619,2]
[340554799,1729462232378,-150.0,0.00013629,2]
[340554800,1729462232388,-150.0,0.00013629,2]
[340554801,1729462232397,-151.85608626,0.00013633,2]
[340554802,1729462232406,-150.0,0.00013633,2]
[340554803,1729462232415,-150.0,0.00013634,2]
[340554804,1729462232424,-150.0,0.00013645,2]
[340554805,1729462232433,-168.89952003,0.00013666,2]
[340554806,1729462232442,-150.0,0.00013671,2]
[340554807,1729462232451,-150.0,0.00013675,2]
[340554808,1729462232459,-200.0,0.00013699,2]
[340554809,1729462232468,-150.0,0.00013708,2]
[340554810,1729462232477,-1500.0,0.00013719,2]
[340554811,1729462232486,-150.0,0.00013721,2]
[340554812,1729462232495,-150.0,0.00013743,2]
[340554813,1729462232504,-150.0,0.00013755,2]
[340554814,1729462232514,-150.0,0.00013762,2]
[340554815,1729462232522,-150.0,0.00013763,2]
[340554816,1729462232531,-150.0,0.00013767,2]
[340554817,1729462232540,-150.0,0.00013781,2]
[340554818,1729462232549,-150.0,0.00013782,2]
[340554819,1729462232558,-150.0,0.00013791,2]
[340554820,1729462232567,-150.0,0.00013792,2]
[340554821,1729462232577,-222.1257,0.000138,2]
[340554822,1729462232586,-1042.0,0.000138,2]
[340554823,1729462232595,-1.62424625,0.00013803,2]
[340554824,1729462232614,-148.37575375,0.00013803,2]
[340554825,1729462232624,-150.0,0.0001381,2]
[340554826,1729462232634,-167.25,0.00013816,2]
[340554827,1729462232643,-150.0,0.00013817,2]
[340554828,1729462232653,-3146.4452,0.00013818,2]
[340554829,1729462232662,-94.51905145,0.00013818,2]
[340554839,1729462238434,-1216.16144855,0.00013818,2]
[340554840,1729462238444,-127.24526353,0.0001383,2]
[340554841,1729462238468,-676.50143647,0.0001383,2]
[340554842,1729462238478,-4357.53391314,0.00013848,2]
[340554843,1729462238489,-5403.3739644,0.000139,2]
[340554844,1729462238499,-25046.35446651,0.000139,2]
[340554845,1729462238527,-1080.68345125,0.000139,2]
[340554846,1729462238539,-509.16789362,0.000139,2]
[340554847,1729462238555,-8208.53520196,0.000139,2]
[340554848,1729462238566,-19086.88437236,0.000139,2]
[340554849,1729462238576,-15772.4535499,0.000139,2]
[340554850,1729462238586,-13376.8391475,0.000139,2]
[340554851,1729462238595,-5835.00614963,0.00013929,2]
[340554852,1729462238610,-345.175,0.00013929,2]
[340554853,1729462238624,-1440.04516118,0.00013929,2]
[340554854,1729462238641,-1019.83248483,0.00013929,2]
[340554855,1729462238653,-762.66851163,0.00013929,2]
[340554856,1729462238669,-13031.32390903,0.00013929,2]
[340554857,1729462238679,-150.0,0.00013948,2]
[340554858,1729462238688,-150.203,0.00013948,2]
[340554859,1729462238701,-350.0,0.00014,2]
[340554860,1729462238711,-383.92,0.00014041,2]
[340554861,1729462238720,-167.0,0.00014152,2]
[340554862,1729462238729,-560.0,0.00014238,2]
[340554863,1729462238740,-1245.0,0.00014238,2]
[340554864,1729462238749,-812.0,0.00014238,2]
[340554865,1729462238759,-550.397,0.00014238,2]
[340554866,1729462238768,-555.0,0.00014238,2]
[340554867,1729462238779,-936.0,0.00014238,2]
[340554868,1729462238789,-3359.0,0.00014238,2]
[340554869,1729462238799,-1910.0,0.00014238,2]
[340554870,1729462238808,-809.0,0.00014238,2]
[340554871,1729462238818,-640.0,0.0001433,2]
[340554872,1729462238827,-153.41,0.0001438,2]
[340554873,1729462238837,-5888.0,0.00014388,2]
[340554874,1729462238847,-1151.0,0.00014388,2]
[340554875,1729462238857,-150.0,0.00014388,2]
[340554876,1729462238867,-13539.0,0.00014388,2]
[340554877,1729462238877,-267.88,0.00014548,2]
[340554878,1729462238887,-360.0,0.00014573,2]
[340554879,1729462238897,-383.92,0.0001468,2]
[340554880,1729462238907,-150.0,0.00014751,2]
[340554881,1729462238916,-587.0,0.00014813,2]
[340554882,1729462238925,-4357.53391314,0.00014887,2]
[340554883,1729462238935,-167.0,0.00014931,2]
[340554884,1729462238944,-153.41,0.00014943,2]
[340554885,1729462238953,-150.0,0.00014943,5]
[340554886,1729462238963,-300.0,0.00015068,2]
[340554887,1729462238972,-383.92,0.00015318,2]
[340554888,1729462238982,-1098.46,0.00015375,2]
[340554889,1729462238991,-153.41,0.00015505,2]
[340554890,1729462239000,-167.0,0.0001571,2]
[340554891,1729462239010,-4357.53391314,0.00015926,2]
[340554892,1729462239019,-400.0,0.00016,2]
[340554893,1729462239029,-153.41,0.00016068,2]
[340554894,1729462239038,-640.0,0.00016121,2]
[340554895,1729462239048,-267.88,0.00016165,2]
[340554896,1729462239057,-360.0,0.00016192,2]
[340554897,1729462239066,-837.93286449,0.000162,2]
[340554898,1729462239079,-162.06713551,0.000162,2]
[340554899,1729462239088,-401.0,0.00016256,2]
[340554900,1729462239097,-55.68218452,0.00016438,2]
[340554901,1729462239119,-96.59781548,0.00016438,2]
[340554902,1729462239129,-300.0,0.00016438,2]
[340554903,1729462239138,-176.89,0.00016438,2]
[340554904,1729462239147,-167.0,0.00016488,2]
[340554905,1729462239157,-1000.0,0.000168,2]
[340554906,1729462239166,-150.0,0.00016948,2]
[340554907,1729462239175,-4357.53391314,0.00016965,2]
[340554908,1729462239184,-560.0,0.00017238,2]
[340554909,1729462239194,-1245.0,0.00017238,2]
[340554910,1729462239203,-812.0,0.00017238,2]
[340554911,1729462239212,-450.0,0.00017238,2]
[340554912,1729462239222,-555.0,0.00017238,2]
[340554913,1729462239232,-934.0,0.00017238,2]
[340554914,1729462239242,-2031.92317971,0.00017238,2]
[340554915,1729462239316,-1327.07682029,0.00017238,2]
[340554916,1729462239326,-1910.0,0.00017238,2]
[340554917,1729462239336,-809.0,0.00017238,2]
[340554918,1729462239345,-152.28,0.00017352,2]
[340554919,1729462239355,-2016.3827767,0.00017388,2]
[340554924,1729462239828,-1378.87335748,0.00017388,2]
[340554927,1729462239857,-602.7973578,0.00017388,2]
[340554928,1729462239870,-1889.94650802,0.00017388,2]
[340554929,1729462239879,-1151.0,0.00017388,2]
[340554930,1729462239890,-150.0,0.00017388,2]
[340554931,1729462239899,-13539.0,0.00017388,2]
[340554932,1729462239909,-728.0,0.000174,2]
[340554933,1729462239918,-202.44,0.00017592,2]
[340554934,1729462239927,-4078.0,0.000176,2]
[340554935,1729462239936,-1098.46,0.00017639,2]
[340554936,1729462239946,-267.88,0.00017781,2]
[340554937,1729462239956,-360.0,0.00017812,2]
[340554938,1729462239965,-640.0,0.00017913,2]
[340554939,1729462239974,-156.67,0.0001796,2]
[340554940,1729462239983,-450.0,0.00018,2]
[340554941,1729462239993,-1044.0,0.00018,2]
[340554942,1729462240002,-4357.53391314,0.00018004,2]
[340554943,1729462240012,-152.28,0.00018265,2]
[340554944,1729462240021,-238.01,0.000187,7]
[340554945,1729462240030,-1640.53,0.00018792,2]
[340554946,1729462240039,-4357.53391314,0.00019044,2]
[340554947,1729462240048,-152.28,0.00019178,2]
[340554948,1729462240057,-166.48,0.00019384,2]
[340554949,1729462240067,-267.88,0.00019398,2]
[340554950,1729462240076,-360.0,0.00019431,2]
[340554951,1729462240086,-16726.7504185,0.00019594,3]
[340554952,1729462240095,-756.17,0.00019655,2]
[340554953,1729462240105,-424.34,0.00019655,2]
[340554954,1729462240115,-756.36,0.00019655,2]
[340554955,1729462240124,-756.36,0.00019655,2]
[340554956,1729462240133,-756.36,0.00019655,2]
[340554957,1729462240142,-756.36,0.00019655,2]
[340554958,1729462240152,-755.41,0.00019655,2]
[340554959,1729462240161,-640.0,0.00019704,2]
[340554960,1729462240171,-1098.46,0.00019903,2]
[340554961,1729462240181,-500.0,0.0002,2]
[340554962,1729462240190,-150.0,0.0002,2]
[340554963,1729462240199,-4357.53391314,0.00020083,2]
[340554964,1729462240208,-152.28,0.00020091,2]
[340554965,1729462240217,-16726.7504185,0.00020224,3]
[340554966,1729462240226,-560.0,0.00020238,2]
[340554967,1729462240235,-512.455,0.00020238,2]
[340554968,1729462240245,-3359.0,0.00020238,2]
[340554969,1729462240254,-1910.0,0.00020238,2]
[340554970,1729462240263,-809.0,0.00020238,2]
[340554971,1729462240272,-5888.0,0.00020388,2]
[340554972,1729462240282,-822.144,0.00020388,2]
[340554973,1729462240291,-150.0,0.00020388,2]
[340554974,1729462240301,-13539.0,0.00020388,2]
[340554975,1729462240311,-16726.7504185,0.00020594,3]
[340554976,1729462240320,-166.05145129,0.00020904,2]
[340554977,1729462240329,-152.28,0.00021005,2]
[340554978,1729462240339,-4357.53391314,0.00021122,2]
[340554979,1729462240348,-1194.4600234,0.00021145,2]
[340554980,1729462240359,-215.73203113,0.00021156,2]
[340554981,1729462240368,-33453.5008371,0.00021236,3]
[340554982,1729462240377,-83633.7520927,0.00021246,3]
[340554983,1729462240387,-6493.38246432,0.00021246,3]
[340554984,1729462240397,-151.37,0.00021246,2]
[340554985,1729462240406,-83633.7520927,0.00021246,3]
[340554986,1729462240576,-19480.147393,0.00021246,3]
[340554987,1729462240589,-169.60500023,0.00021246,2]
[340554988,1729462240598,-50180.2512556,0.00021256,3]
[340554989,1729462240609,-15151.2257501,0.00021256,3]
[340554990,1729462240619,-500.0,0.00021256,2]
[340554991,1729462240629,-500.0,0.00021256,2]
[340554992,1729462240638,-500.0,0.00021256,2]
[340554993,1729462240648,-500.0,0.00021256,2]
[340554994,1729462240658,-500.0,0.00021256,2]
[340554996,1729462240668,-500.0,0.00021256,2]
[340554998,1729462240677,-500.0,0.00021256,2]
[340555000,1729462240687,-500.0,0.00021256,2]
[340555002,1729462240699,-500.0,0.00021256,2]
[340555004,1729462240708,-500.0,0.00021256,2]
[340555006,1729462240718,-500.0,0.00021256,2]
[340555007,1729462240727,-500.0,0.00021256,2]
[340555009,1729462240736,-500.0,0.00021256,2]
[340555011,1729462240746,-500.0,0.00021256,2]
[340555013,1729462240756,-500.0,0.00021256,2]
[340555015,1729462240765,-500.0,0.00021256,2]
[340555017,1729462240775,-500.0,0.00021256,2]
[340555019,1729462240785,-500.0,0.00021256,2]
[340555021,1729462240794,-500.0,0.00021256,2]
[340555023,1729462240803,-500.0,0.00021256,2]
[340555025,1729462240813,-500.0,0.00021256,2]
[340555027,1729462240823,-500.0,0.00021256,2]
[340555029,1729462240832,-500.0,0.00021256,2]
[340555031,1729462240842,-500.0,0.00021256,2]
[340555033,1729462240852,-500.0,0.00021256,2]
[340555035,1729462240863,-500.0,0.00021256,2]
[340555037,1729462240872,-500.0,0.00021256,2]
[340555039,1729462240881,-500.0,0.00021256,2]
[340555041,1729462240890,-500.0,0.00021256,2]
[340555043,1729462240900,-500.0,0.00021256,2]
[340555045,1729462240910,-500.0,0.00021256,2]
[340555046,1729462240919,-500.0,0.00021256,2]
[340555047,1729462240929,-500.0,0.00021256,2]
[340555048,1729462240938,-500.0,0.00021256,2]
[340555050,1729462240947,-500.0,0.00021256,2]
[340555052,1729462240957,-500.0,0.00021256,2]
[340555054,1729462240966,-500.0,0.00021256,2]
[340555056,1729462240976,-500.0,0.00021256,2]
[340555058,1729462240985,-500.0,0.00021256,2]
[340555059,1729462240994,-500.0,0.00021256,2]
[340555061,1729462241003,-500.0,0.00021256,2]
[340555063,1729462241013,-500.0,0.00021256,2]
[340555065,1729462241022,-500.0,0.00021256,2]
[340555067,1729462241032,-500.0,0.00021256,2]
[340555069,1729462241040,-500.0,0.00021256,2]
[340555071,1729462241050,-500.0,0.00021256,2]
[340555073,1729462241060,-500.0,0.00021256,2]
[340555075,1729462241070,-500.0,0.00021256,2]
[340555077,1729462241079,-500.0,0.00021256,2]
[340555079,1729462241089,-500.0,0.00021256,2]
[340555081,1729462241099,-500.0,0.00021256,2]
[340555083,1729462241110,-500.0,0.00021256,2]
[340555085,1729462241121,-500.0,0.00021256,2]
[340555087,1729462241132,-500.0,0.00021256,2]
[340555089,1729462241142,-500.0,0.00021256,2]
[340555091,1729462241152,-500.0,0.00021256,2]
[340555093,1729462241162,-500.0,0.00021256,2]
[340555094,1729462241171,-500.0,0.00021256,2]
[340555095,1729462241181,-500.0,0.00021256,2]
[340555096,1729462241191,-500.0,0.00021256,2]
[340555097,1729462241200,-500.0,0.00021256,2]
[340555098,1729462241209,-500.0,0.00021256,2]
[340555099,1729462241218,-500.0,0.00021256,2]
[340555100,1729462241229,-500.0,0.00021256,2]
[340555101,1729462241239,-500.0,0.00021256,2]
[340555102,1729462241248,-500.0,0.00021256,2]
[340555103,1729462241257,-500.0,0.00021256,2]
[340555104,1729462241267,-500.0,0.00021256,2]
[340555105,1729462241277,-500.0,0.00021256,2]
[340555106,1729462241286,-500.0,0.00021256,2]
[340555107,1729462241295,-500.0,0.00021256,2]
[340555108,1729462241305,-500.0,0.00021256,2]
[340555109,1729462241314,-500.0,0.00021256,2]
[340555110,1729462241323,-500.0,0.00021256,2]
[340555111,1729462241333,-500.0,0.00021256,2]
[340555112,1729462241342,-500.0,0.00021256,2]
[340555113,1729462241350,-500.0,0.00021256,2]
[340555114,1729462241361,-500.0,0.00021256,2]
[340555115,1729462241370,-500.0,0.00021256,2]
[340555116,1729462241379,-500.0,0.00021256,2]
[340555117,1729462241388,-500.0,0.00021256,2]
[340555118,1729462241397,-500.0,0.00021256,2]
[340555119,1729462241406,-500.0,0.00021256,2]
[340555120,1729462241415,-500.0,0.00021256,2]
[340555121,1729462241424,-500.0,0.00021256,2]
[340555122,1729462241435,-500.0,0.00021256,2]
[340555123,1729462241444,-500.0,0.00021256,2]
[340555124,1729462241454,-500.0,0.00021256,2]
[340555125,1729462241464,-500.0,0.00021256,2]
[340555126,1729462241474,-500.0,0.00021256,2]
[340555127,1729462241483,-500.0,0.00021256,2]
[340555128,1729462241492,-500.0,0.00021256,2]
[340555129,1729462241501,-500.0,0.00021256,2]
[340555130,1729462241509,-500.0,0.00021256,2]
[340555131,1729462241518,-500.0,0.00021256,2]
[340555132,1729462241527,-500.0,0.00021256,2]
[340555133,1729462241536,-500.0,0.00021256,2]
[340555134,1729462241545,-500.0,0.00021256,2]
[340555135,1729462241555,-500.0,0.00021256,2]
[340555136,1729462241565,-500.0,0.00021256,2]
[340555137,1729462241574,-500.0,0.00021256,2]
[340555138,1729462241583,-500.0,0.00021256,2]
[340555139,1729462241593,-500.0,0.00021256,2]
[340555140,1729462241603,-500.0,0.00021256,2]
[340555141,1729462241614,-500.0,0.00021256,2]
[340555142,1729462241624,-500.0,0.00021256,2]
[340555143,1729462241634,-500.0,0.00021256,2]
[340555144,1729462241644,-500.0,0.00021256,2]
[340555145,1729462241653,-500.0,0.00021256,2]
[340555146,1729462241663,-500.0,0.00021256,2]
[340555147,1729462241673,-500.0,0.00021256,2]
[340555148,1729462241682,-500.0,0.00021256,2]
[340555149,1729462241691,-500.0,0.00021256,2]
[340555150,1729462241703,-500.0,0.00021256,2]
[340555151,1729462241712,-500.0,0.00021256,2]
[340555152,1729462241721,-500.0,0.00021256,2]
[340555153,1729462241730,-500.0,0.00021256,2]
[340555154,1729462241741,-500.0,0.00021256,2]
[340555155,1729462241750,-162.58868509,0.00021256,2]
[340555156,1729462241766,-337.41131491,0.00021256,2]
[340555157,1729462241776,-279.48190366,0.00021256,2]
[340555158,1729462241788,-220.51809634,0.00021256,2]
[340555159,1729462241797,-500.0,0.00021256,2]
[340555160,1729462241806,-500.0,0.00021256,2]
[340555161,1729462241816,-500.0,0.00021256,2]
[340555162,1729462241825,-500.0,0.00021256,2]
[340555163,1729462241835,-500.0,0.00021256,2]
[340555164,1729462241845,-500.0,0.00021256,2]
[340555165,1729462241854,-215.67588397,0.00021256,2]
[340555166,1729462241869,-284.32411603,0.00021256,2]
[340555167,1729462241878,-500.0,0.00021256,2]
[340555168,1729462241887,-311.19489774,0.00021256,2]
[340555169,1729462241903,-188.80510226,0.00021256,2]
[340555170,1729462241912,-500.0,0.00021256,2]
[340555171,1729462241921,-500.0,0.00021256,2]
[340555172,1729462241930,-500.0,0.00021256,2]
[340555173,1729462241940,-500.0,0.00021256,2]
[340555174,1729462241949,-500.0,0.00021256,2]
[340555175,1729462241958,-500.0,0.00021256,2]
[340555176,1729462241967,-500.0,0.00021256,2]
[340555177,1729462241976,-500.0,0.00021256,2]
[340555178,1729462241985,-500.0,0.00021256,2]
[340555179,1729462241995,-500.0,0.00021256,2]
[340555180,1729462242004,-500.0,0.00021256,2]
[340555181,1729462242013,-500.0,0.00021256,2]
[340555182,1729462242022,-500.0,0.00021256,2]
[340555183,1729462242031,-500.0,0.00021256,2]
[340555184,1729462242040,-500.0,0.00021256,2]
[340555185,1729462242050,-500.0,0.00021256,2]
[340555186,1729462242059,-500.0,0.00021256,2]
[340555187,1729462242068,-500.0,0.00021256,2]
[340555188,1729462242078,-500.0,0.00021256,2]
[340555189,1729462242087,-500.0,0.00021256,2]
[340555190,1729462242096,-500.0,0.00021256,2]
[340555191,1729462242105,-500.0,0.00021256,2]
[340555192,1729462242117,-500.0,0.00021256,2]
[340555193,1729462242126,-500.0,0.00021256,2]
[340555194,1729462242135,-500.0,0.00021256,2]
[340555195,1729462242144,-500.0,0.00021256,2]
[340555196,1729462242153,-500.0,0.00021256,2]
[340555197,1729462242163,-500.0,0.00021256,2]
[340555198,1729462242172,-500.0,0.00021256,2]
[340555199,1729462242181,-500.0,0.00021256,2]
[340555200,1729462242190,-500.0,0.00021256,2]
[340555201,1729462242199,-500.0,0.00021256,2]
[340555202,1729462242208,-500.0,0.00021256,2]
[340555203,1729462242217,-500.0,0.00021256,2]
[340555204,1729462242227,-500.0,0.00021256,2]
[340555205,1729462242236,-500.0,0.00021256,2]
[340555206,1729462242245,-500.0,0.00021256,2]
[340555207,1729462242254,-500.0,0.00021256,2]
[340555208,1729462242263,-500.0,0.00021256,2]
[340555209,1729462242272,-500.0,0.00021256,2]
[340555210,1729462242281,-500.0,0.00021256,2]
[340555211,1729462242290,-500.0,0.00021256,2]
[340555212,1729462242299,-500.0,0.00021256,2]
[340555213,1729462242308,-500.0,0.00021256,2]
[340555214,1729462242317,-500.0,0.00021256,2]
[340555215,1729462242327,-500.0,0.00021256,2]
[340555216,1729462242336,-500.0,0.00021256,2]
[340555217,1729462242344,-500.0,0.00021256,2]
[340555218,1729462242354,-500.0,0.00021256,2]
[340555219,1729462242365,-500.0,0.00021256,2]
[340555220,1729462242376,-500.0,0.00021256,2]
[340555221,1729462242385,-500.0,0.00021256,2]
[340555222,1729462242395,-500.0,0.00021256,2]
[340555223,1729462242404,-500.0,0.00021256,2]
[340555224,1729462242414,-500.0,0.00021256,2]
[340555225,1729462242424,-500.0,0.00021256,2]
[340555226,1729462242433,-500.0,0.00021256,2]
[340555227,1729462242443,-500.0,0.00021256,2]
[340555228,1729462242452,-500.0,0.00021256,2]
[340555229,1729462242461,-500.0,0.00021256,2]